[Event "Late-Titled-Tuesday-Blitz-March-19-2024"]
[Site "Chess.com"]
[Date "2024.03.19"]
[Round "4"]
[White "Bryanl106"]
[Black "balack95"]
[Result "1-0"]
[WhiteElo "2678"]
[BlackElo "2457"]
[TimeControl "180+1"]
[EndTime "14:38:18 PDT"]
[Termination "Bryanl106 won by resignation"]

1. e4 {[%clk 0:02:57.3]} 1... c5 {[%clk 0:02:59.8]} 2. Nf3 {[%clk 0:02:57.4]}
2... e6 {[%clk 0:03:00.3]} 3. d4 {[%clk 0:02:58.1]} 3... cxd4 {[%clk 0:03:01.2]}
4. Nxd4 {[%clk 0:02:58.9]} 4... Nc6 {[%clk 0:03:01.7]} 5. Nc3 {[%clk 0:02:59.4]}
5... Qc7 {[%clk 0:03:02.3]} 6. Be3 {[%clk 0:02:59.9]} 6... a6 {[%clk 0:03:02.7]}
7. Qf3 {[%clk 0:03:00.6]} 7... h5 {[%clk 0:03:03.2]} 8. h4 {[%clk 0:02:53.8]}
8... b5 {[%clk 0:03:03.3]} 9. O-O-O {[%clk 0:02:53.2]} 9... Bb7 {[%clk
0:03:02.3]} 10. Kb1 {[%clk 0:02:47.3]} 10... Nf6 {[%clk 0:03:02.1]} 11. Nxc6
{[%clk 0:02:44.2]} 11... Bxc6 {[%clk 0:03:01.5]} 12. Bf4 {[%clk 0:02:43.1]}
12... e5 {[%clk 0:02:58.4]} 13. Bg5 {[%clk 0:02:42.9]} 13... Be7 {[%clk
0:02:57.7]} 14. Bxf6 {[%clk 0:02:41]} 14... Bxf6 {[%clk 0:02:52.2]} 15. Nd5
{[%clk 0:02:40.5]} 15... Bxd5 {[%clk 0:02:52.3]} 16. Rxd5 {[%clk 0:02:41.4]}
16... d6 {[%clk 0:02:51.7]} 17. Be2 {[%clk 0:02:39.6]} 17... Rc8 {[%clk
0:02:45.1]} 18. c3 {[%clk 0:02:38.4]} 18... Ke7 {[%clk 0:02:40.3]} 19. Rhd1
{[%clk 0:02:30.9]} 19... Bxh4 {[%clk 0:02:35.5]} 20. a4 {[%clk 0:02:18.4]} 20...
bxa4 {[%clk 0:02:24.3]} 21. Rxd6 {[%clk 0:02:17.8]} 21... Rhd8 {[%clk 0:02:19]}
22. Rxd8 {[%clk 0:02:05.5]} 22... Rxd8 {[%clk 0:02:19.9]} 23. Qxh5 {[%clk
0:02:05.2]} 23... Rxd1+ {[%clk 0:02:18.6]} 24. Bxd1 {[%clk 0:02:06.1]} 24... Bf6
{[%clk 0:02:14.4]} 25. Qe2 {[%clk 0:01:57.5]} 25... Qc6 {[%clk 0:02:03.6]} 26.
Qc2 {[%clk 0:01:54.5]} 26... g6 {[%clk 0:01:54.6]} 27. Qxa4 {[%clk 0:01:52.1]}
27... Qxa4 {[%clk 0:01:55.5]} 28. Bxa4 {[%clk 0:01:52.3]} 28... a5 {[%clk
0:01:52]} 29. Kc2 {[%clk 0:01:52]} 29... Kd6 {[%clk 0:01:52.2]} 30. Kd3 {[%clk
0:01:50.6]} 30... Bd8 {[%clk 0:01:51.1]} 31. Kc4 {[%clk 0:01:49.5]} 31... f5
{[%clk 0:01:41.4]} 32. Be8 {[%clk 0:01:42.4]} 32... fxe4 {[%clk 0:01:39]} 33.
Bxg6 {[%clk 0:01:40.6]} 33... Bb6 {[%clk 0:01:39.4]} 34. Bxe4 {[%clk 0:01:40.9]}
34... Bxf2 {[%clk 0:01:38.8]} 35. Kb5 {[%clk 0:01:41.3]} 35... Bh4 {[%clk
0:01:33.7]} 36. Kxa5 {[%clk 0:01:40.7]} 36... Kc5 {[%clk 0:01:34.6]} 37. Ka4
{[%clk 0:01:32.8]} 37... Kc4 {[%clk 0:01:31.3]} 38. Ka3 {[%clk 0:01:32.1]} 38...
Be7+ {[%clk 0:01:30.1]} 39. Ka2 {[%clk 0:01:32.3]} 39... Bg5 {[%clk 0:01:28]}
40. Kb1 {[%clk 0:01:31.4]} 40... Kb3 {[%clk 0:01:28.4]} 41. Bd5+ {[%clk
0:01:31.2]} 41... Ka4 {[%clk 0:01:28.8]} 42. Kc2 {[%clk 0:01:31.7]} 42... Kb5
{[%clk 0:01:29.3]} 43. Be4 {[%clk 0:01:32.2]} 43... Kc5 {[%clk 0:01:30.2]} 44.
b3 {[%clk 0:01:32.1]} 44... Bf4 {[%clk 0:01:30.3]} 45. b4+ {[%clk 0:01:31.4]}
45... Kc4 {[%clk 0:01:29.7]} 46. Bg6 {[%clk 0:01:27.3]} 46... Bg3 {[%clk
0:01:28.6]} 47. Bf7+ {[%clk 0:01:27.4]} 47... Kb5 {[%clk 0:01:29.1]} 48. Kd3
{[%clk 0:01:28.1]} 48... Be1 {[%clk 0:01:28.1]} 49. Be8+ {[%clk 0:01:27.6]}
49... Kb6 {[%clk 0:01:25.4]} 50. Bg6 {[%clk 0:01:28.2]} 50... Kb5 {[%clk
0:01:25.1]} 51. Be4 {[%clk 0:01:27.7]} 51... Bg3 {[%clk 0:01:23.4]} 52. Bd5
{[%clk 0:01:27.6]} 52... Be1 {[%clk 0:01:17.3]} 53. g4 {[%clk 0:01:27.4]} 53...
Bh4 {[%clk 0:01:18]} 54. Kc2 {[%clk 0:01:27.5]} 54... Ka4 {[%clk 0:01:16.6]} 55.
Bc6+ {[%clk 0:01:25.7]} 55... Ka3 {[%clk 0:01:15.9]} 56. b5 {[%clk 0:01:15.3]}
56... Bd8 {[%clk 0:01:14.9]} 57. Bd7 {[%clk 0:01:02.2]} 57... e4 {[%clk
0:01:11.3]} 58. Bc6 {[%clk 0:01:02.4]} 58... e3 {[%clk 0:01:11.2]} 59. Kd3
{[%clk 0:01:03]} 59... Kb3 {[%clk 0:01:09.6]} 60. Bf3 {[%clk 0:01:02.2]} 60...
Ba5 {[%clk 0:01:07.9]} 61. g5 {[%clk 0:00:58.4]} 61... Bxc3 {[%clk 0:01:06]} 62.
b6 {[%clk 0:00:49.1]} 62... Be5 {[%clk 0:01:00.8]} 63. g6 {[%clk 0:00:47.7]}
63... Ka4 {[%clk 0:01:00.8]} 64. b7 {[%clk 0:00:47.9]} 64... Kb5 {[%clk
0:01:00.2]} 65. g7 {[%clk 0:00:47.5]} 1-0

[Event "Late-Titled-Tuesday-Blitz-March-19-2024"]
[Site "Chess.com"]
[Date "2024.03.19"]
[Round "4"]
[White "GHANDEEVAM2003"]
[Black "annasargsyan_m"]
[Result "1-0"]
[WhiteElo "3032"]
[BlackElo "2635"]
[TimeControl "180+1"]
[EndTime "14:38:19 PDT"]
[Termination "GHANDEEVAM2003 won on time"]

1. Nc3 {[%clk 0:03:00.8]} 1... e5 {[%clk 0:02:50.1]} 2. Nf3 {[%clk 0:03:00.1]}
2... Nc6 {[%clk 0:02:49.7]} 3. e3 {[%clk 0:02:58.6]} 3... Nf6 {[%clk 0:02:49.5]}
4. Bb5 {[%clk 0:02:57.5]} 4... e4 {[%clk 0:02:47.3]} 5. Ng5 {[%clk 0:02:52.9]}
5... d5 {[%clk 0:02:44.9]} 6. f3 {[%clk 0:02:52.1]} 6... h6 {[%clk 0:02:44.3]}
7. Nh3 {[%clk 0:02:52.3]} 7... Bxh3 {[%clk 0:02:43]} 8. gxh3 {[%clk 0:02:53.2]}
8... Bb4 {[%clk 0:02:41.7]} 9. O-O {[%clk 0:02:47.2]} 9... O-O {[%clk
0:02:39.8]} 10. Bxc6 {[%clk 0:02:41.8]} 10... bxc6 {[%clk 0:02:39.8]} 11. a3
{[%clk 0:02:42.2]} 11... Bxc3 {[%clk 0:02:39.7]} 12. bxc3 {[%clk 0:02:43.1]}
12... Rb8 {[%clk 0:02:35]} 13. Kh1 {[%clk 0:02:40.2]} 13... Qd7 {[%clk
0:02:34.8]} 14. Kg2 {[%clk 0:02:37.2]} 14... Rfe8 {[%clk 0:02:33.5]} 15. a4
{[%clk 0:02:36.5]} 15... exf3+ {[%clk 0:02:26.5]} 16. Qxf3 {[%clk 0:02:37.4]}
16... Re5 {[%clk 0:02:26.5]} 17. d3 {[%clk 0:02:34]} 17... Rbe8 {[%clk
0:02:24.9]} 18. Bd2 {[%clk 0:02:31.9]} 18... Nh7 {[%clk 0:02:21.6]} 19. h4
{[%clk 0:02:29.8]} 19... Nf8 {[%clk 0:02:19.2]} 20. Kh1 {[%clk 0:02:28.9]} 20...
Ng6 {[%clk 0:02:13.8]} 21. h5 {[%clk 0:02:21.5]} 21... Nh4 {[%clk 0:02:12]} 22.
Qe2 {[%clk 0:02:21.3]} 22... Qh3 {[%clk 0:02:04.1]} 23. Rf4 {[%clk 0:02:15.7]}
23... Rg5 {[%clk 0:01:16]} 24. Rg1 {[%clk 0:02:01.6]} 24... Rxg1+ {[%clk
0:01:08]} 25. Kxg1 {[%clk 0:02:02.5]} 25... Re5 {[%clk 0:01:08]} 26. Kh1 {[%clk
0:00:59.4]} 26... Rg5 {[%clk 0:00:57]} 27. Be1 {[%clk 0:01:00]} 27... Ng2 {[%clk
0:00:11.9]} 28. Rf3 {[%clk 0:00:56.8]} 28... Qxh5 {[%clk 0:00:12.5]} 29. Bf2
{[%clk 0:00:52.2]} 29... Nh4 {[%clk 0:00:07.3]} 30. Bxh4 {[%clk 0:00:52.1]}
30... Qxh4 {[%clk 0:00:08.2]} 31. Rf4 {[%clk 0:00:52.7]} 31... Qh3 {[%clk
0:00:07]} 32. Qf2 {[%clk 0:00:47.7]} 32... f6 {[%clk 0:00:04.5]} 33. a5 {[%clk
0:00:48.2]} 33... d4 {[%clk 0:00:02.8]} 34. exd4 {[%clk 0:00:37.7]} 34... Rxa5
{[%clk 0:00:03.5]} 35. Qe1 {[%clk 0:00:38.4]} 1-0

[Event "Late-Titled-Tuesday-Blitz-March-19-2024"]
[Site "Chess.com"]
[Date "2024.03.19"]
[Round "4"]
[White "kylelancman"]
[Black "SnekkerAndersen"]
[Result "1/2-1/2"]
[WhiteElo "2470"]
[BlackElo "2706"]
[TimeControl "180+1"]
[EndTime "14:38:22 PDT"]
[Termination "Game drawn by repetition"]

1. e4 {[%clk 0:03:00.9]} 1... e5 {[%clk 0:02:37.2]} 2. Nf3 {[%clk 0:03:00.8]}
2... Nf6 {[%clk 0:02:36.2]} 3. Nc3 {[%clk 0:03:00.7]} 3... Bb4 {[%clk
0:02:29.1]} 4. Bc4 {[%clk 0:02:42.5]} 4... O-O {[%clk 0:02:20.8]} 5. d3 {[%clk
0:02:31.5]} 5... c6 {[%clk 0:02:16.2]} 6. Bb3 {[%clk 0:02:29.6]} 6... d5 {[%clk
0:02:15.4]} 7. Bd2 {[%clk 0:02:26.9]} 7... Bxc3 {[%clk 0:02:14.9]} 8. Bxc3
{[%clk 0:02:24.2]} 8... d4 {[%clk 0:02:14.1]} 9. Bb4 {[%clk 0:02:20.6]} 9... Re8
{[%clk 0:02:13.3]} 10. Ng5 {[%clk 0:02:20]} 10... Be6 {[%clk 0:02:10]} 11. Nxe6
{[%clk 0:02:17.9]} 11... fxe6 {[%clk 0:02:10.9]} 12. O-O {[%clk 0:02:15.6]}
12... b5 {[%clk 0:02:08.7]} 13. a4 {[%clk 0:02:11.4]} 13... a5 {[%clk
0:02:08.7]} 14. Bd2 {[%clk 0:02:11.5]} 14... b4 {[%clk 0:02:09.2]} 15. Bg5
{[%clk 0:02:09.5]} 15... Nbd7 {[%clk 0:02:06.9]} 16. Qe2 {[%clk 0:02:06.9]}
16... Qe7 {[%clk 0:02:06.8]} 17. f4 {[%clk 0:02:04.9]} 17... h6 {[%clk
0:02:02.5]} 18. Bh4 {[%clk 0:02:01.1]} 18... Kh7 {[%clk 0:02:03.1]} 19. f5
{[%clk 0:01:34.4]} 19... exf5 {[%clk 0:01:26.6]} 20. Rxf5 {[%clk 0:01:35.3]}
20... Rf8 {[%clk 0:01:26.5]} 21. Raf1 {[%clk 0:01:33.1]} 21... Qd6 {[%clk
0:01:25.1]} 22. Bg3 {[%clk 0:01:30.7]} 22... Ng8 {[%clk 0:01:23.1]} 23. Qg4
{[%clk 0:01:11.3]} 23... Ngf6 {[%clk 0:01:19.9]} 24. Qh4 {[%clk 0:01:04.6]}
24... Rae8 {[%clk 0:01:19.9]} 25. Bc4 {[%clk 0:01:03.2]} 25... Nb6 {[%clk
0:01:16.9]} 26. Bb3 {[%clk 0:01:03.1]} 26... c5 {[%clk 0:01:17.3]} 27. Qh3
{[%clk 0:00:57.6]} 27... c4 {[%clk 0:01:15.8]} 28. Bxc4 {[%clk 0:00:50.1]} 28...
Nxc4 {[%clk 0:01:15.6]} 29. dxc4 {[%clk 0:00:51]} 29... Nxe4 {[%clk 0:01:07.7]}
30. Bxe5 {[%clk 0:00:39.9]} 30... Qc5 {[%clk 0:01:04.4]} 31. Bxg7 {[%clk
0:00:24.6]} 31... d3+ {[%clk 0:00:31.5]} 32. Rxc5 {[%clk 0:00:23.8]} 32... Rxf1+
{[%clk 0:00:31.9]} 33. Kxf1 {[%clk 0:00:20.4]} 33... Nd2+ {[%clk 0:00:32.4]} 34.
Kf2 {[%clk 0:00:19.2]} 34... Re2+ {[%clk 0:00:33]} 35. Kg1 {[%clk 0:00:15.3]}
35... Re1+ {[%clk 0:00:33.2]} 36. Kf2 {[%clk 0:00:15.8]} 36... Re2+ {[%clk
0:00:33.8]} 37. Kg1 {[%clk 0:00:13.6]} 37... Re1+ {[%clk 0:00:34.2]} 38. Kf2
{[%clk 0:00:14.2]} 38... Re2+ {[%clk 0:00:26.2]} 1/2-1/2

[Event "Late-Titled-Tuesday-Blitz-March-19-2024"]
[Site "Chess.com"]
[Date "2024.03.19"]
[Round "4"]
[White "Jamal-Jamal-Jamal"]
[Black "zverr1"]
[Result "0-1"]
[WhiteElo "2253"]
[BlackElo "2545"]
[TimeControl "180+1"]
[EndTime "14:38:22 PDT"]
[Termination "zverr1 won by resignation"]

1. e4 {[%clk 0:02:59.3]} 1... c5 {[%clk 0:02:58.6]} 2. Nf3 {[%clk 0:02:55.3]}
2... Nc6 {[%clk 0:02:57.1]} 3. d4 {[%clk 0:02:54.7]} 3... cxd4 {[%clk 0:02:58]}
4. Nxd4 {[%clk 0:02:55.2]} 4... Nf6 {[%clk 0:02:58.9]} 5. Nc3 {[%clk 0:02:53.7]}
5... e6 {[%clk 0:02:59.4]} 6. Ndb5 {[%clk 0:02:51.1]} 6... Bc5 {[%clk
0:02:58.1]} 7. Bf4 {[%clk 0:02:46.8]} 7... O-O {[%clk 0:02:48.7]} 8. Bc7 {[%clk
0:02:46.5]} 8... Qe7 {[%clk 0:02:44.9]} 9. Bd6 {[%clk 0:02:43.4]} 9... Bxd6
{[%clk 0:02:44.3]} 10. Qxd6 {[%clk 0:02:42.8]} 10... Qd8 {[%clk 0:02:39.7]} 11.
Nc7 {[%clk 0:02:41.7]} 11... Ne8 {[%clk 0:02:24.1]} 12. Nxe8 {[%clk 0:02:36.1]}
12... Rxe8 {[%clk 0:02:25]} 13. Be2 {[%clk 0:02:26.5]} 13... a6 {[%clk
0:02:16.3]} 14. O-O {[%clk 0:02:17.8]} 14... b5 {[%clk 0:02:16]} 15. e5 {[%clk
0:02:16.3]} 15... Bb7 {[%clk 0:02:09.9]} 16. Ne4 {[%clk 0:01:59.3]} 16... Qb8
{[%clk 0:01:41.6]} 17. Qxb8 {[%clk 0:01:25.9]} 17... Rexb8 {[%clk 0:01:36.2]}
18. Nd6 {[%clk 0:01:02.4]} 18... Nxe5 {[%clk 0:01:33.3]} 19. f4 {[%clk
0:01:02.3]} 19... Nc4 {[%clk 0:01:14.9]} 20. Nxc4 {[%clk 0:00:44.1]} 20... bxc4
{[%clk 0:01:14.2]} 21. Bxc4 {[%clk 0:00:43.9]} 21... Be4 {[%clk 0:01:06.6]} 22.
Bb3 {[%clk 0:00:37.5]} 22... a5 {[%clk 0:01:06.5]} 23. a4 {[%clk 0:00:30.7]}
23... d5 {[%clk 0:01:06.3]} 24. Kf2 {[%clk 0:00:27.4]} 24... Rb4 {[%clk
0:01:04.1]} 25. Ke3 {[%clk 0:00:25.1]} 25... Rc8 {[%clk 0:00:59]} 26. Rf2 {[%clk
0:00:21.6]} 26... f5 {[%clk 0:00:57]} 27. Rd1 {[%clk 0:00:18.1]} 27... Kf7
{[%clk 0:00:50.8]} 28. Rd4 {[%clk 0:00:18.1]} 28... Rb6 {[%clk 0:00:45.1]} 29.
Rfd2 {[%clk 0:00:16.6]} 29... Rbc6 {[%clk 0:00:40.2]} 30. c3 {[%clk 0:00:16.3]}
30... Rb8 {[%clk 0:00:40.7]} 31. Ba2 {[%clk 0:00:16.3]} 31... Rcb6 {[%clk
0:00:41.3]} 32. b4 {[%clk 0:00:16.2]} 32... axb4 {[%clk 0:00:40.9]} 33. cxb4
{[%clk 0:00:17.1]} 33... Rxb4 {[%clk 0:00:41.1]} 34. Rxb4 {[%clk 0:00:17.3]}
34... Rxb4 {[%clk 0:00:42]} 35. a5 {[%clk 0:00:12.8]} 35... Ra4 {[%clk
0:00:40.1]} 36. Rb2 {[%clk 0:00:12.9]} 36... Rxa5 {[%clk 0:00:39.7]} 37. Rb7+
{[%clk 0:00:12.5]} 37... Kf6 {[%clk 0:00:40.3]} 38. Bb3 {[%clk 0:00:11.8]} 38...
d4+ {[%clk 0:00:37.9]} 39. Kxd4 {[%clk 0:00:11.7]} 0-1

[Event "Late-Titled-Tuesday-Blitz-March-19-2024"]
[Site "Chess.com"]
[Date "2024.03.19"]
[Round "4"]
[White "cthake"]
[Black "lluiss"]
[Result "0-1"]
[WhiteElo "1820"]
[BlackElo "2259"]
[TimeControl "180+1"]
[EndTime "14:38:23 PDT"]
[Termination "lluiss won on time"]

1. e4 {[%clk 0:03:00.9]} 1... c5 {[%clk 0:02:59]} 2. Nf3 {[%clk 0:02:59.9]} 2...
d6 {[%clk 0:02:59]} 3. d4 {[%clk 0:02:59.5]} 3... cxd4 {[%clk 0:02:59.2]} 4.
Nxd4 {[%clk 0:03:00.1]} 4... Nf6 {[%clk 0:02:59.2]} 5. Nc3 {[%clk 0:03:00]} 5...
g6 {[%clk 0:02:59.4]} 6. Be3 {[%clk 0:03:00]} 6... Bg7 {[%clk 0:02:59.5]} 7. Bc4
{[%clk 0:03:00]} 7... O-O {[%clk 0:02:59]} 8. f3 {[%clk 0:02:58.5]} 8... Nc6
{[%clk 0:02:59]} 9. Qd2 {[%clk 0:02:58.3]} 9... Bd7 {[%clk 0:02:59]} 10. Bb3
{[%clk 0:02:57.6]} 10... Ne5 {[%clk 0:02:58.5]} 11. O-O-O {[%clk 0:02:56.3]}
11... Qa5 {[%clk 0:02:58.3]} 12. Kb1 {[%clk 0:02:49.1]} 12... Rfc8 {[%clk
0:02:57.5]} 13. h4 {[%clk 0:02:41]} 13... h5 {[%clk 0:02:46.9]} 14. g4 {[%clk
0:02:39.6]} 14... Rxc3 {[%clk 0:02:41.5]} 15. bxc3 {[%clk 0:02:13.6]} 15... hxg4
{[%clk 0:02:39.8]} 16. h5 {[%clk 0:02:05.7]} 16... Nxh5 {[%clk 0:02:22.8]} 17.
Rxh5 {[%clk 0:01:51.1]} 17... gxh5 {[%clk 0:02:21]} 18. Bh6 {[%clk 0:01:50.6]}
18... Bf6 {[%clk 0:01:35.2]} 19. fxg4 {[%clk 0:01:13.1]} 19... hxg4 {[%clk
0:01:30.9]} 20. Rg1 {[%clk 0:00:27.2]} 20... Rc8 {[%clk 0:01:27.4]} 21. Nf5
{[%clk 0:00:17.2]} 21... Qxc3 {[%clk 0:01:11.3]} 22. Qxc3 {[%clk 0:00:17]} 22...
Rxc3 {[%clk 0:01:10.1]} 23. Kb2 {[%clk 0:00:15.6]} 23... Rf3 {[%clk 0:00:54.1]}
24. Nd4 {[%clk 0:00:15]} 24... Nc6 {[%clk 0:00:50]} 25. c3 {[%clk 0:00:12.5]}
25... Nxd4 {[%clk 0:00:49.2]} 26. cxd4 {[%clk 0:00:12.4]} 26... Bxd4+ {[%clk
0:00:49.2]} 27. Ka3 {[%clk 0:00:13.1]} 27... g3 {[%clk 0:00:48.1]} 28. Rg2
{[%clk 0:00:12.2]} 28... Be5 {[%clk 0:00:46.8]} 29. Kb4 {[%clk 0:00:09.2]} 29...
Rf2 {[%clk 0:00:46.9]} 30. Rxf2 {[%clk 0:00:05.9]} 30... gxf2 {[%clk 0:00:46.7]}
31. Bc4 {[%clk 0:00:06.3]} 31... Bh3 {[%clk 0:00:46.5]} 32. Be3 {[%clk
0:00:05.3]} 32... f1=Q {[%clk 0:00:46]} 33. Bxf1 {[%clk 0:00:06]} 33... Bxf1
{[%clk 0:00:46]} 34. Bxa7 {[%clk 0:00:06]} 34... Bd3 {[%clk 0:00:44.9]} 35. a4
{[%clk 0:00:06]} 35... Bxe4 {[%clk 0:00:44.8]} 36. a5 {[%clk 0:00:06.5]} 36...
Bc6 {[%clk 0:00:44.5]} 37. Bb8 {[%clk 0:00:04.5]} 37... Kg7 {[%clk 0:00:44]} 38.
Kc4 {[%clk 0:00:03.6]} 38... Kf6 {[%clk 0:00:43.7]} 39. Bc7 {[%clk 0:00:02.4]}
39... Bg3 {[%clk 0:00:42.4]} 0-1

[Event "Late-Titled-Tuesday-Blitz-March-19-2024"]
[Site "Chess.com"]
[Date "2024.03.19"]
[Round "4"]
[White "Horokoskii"]
[Black "NikolaGry"]
[Result "0-1"]
[WhiteElo "2175"]
[BlackElo "2702"]
[TimeControl "180+1"]
[EndTime "14:38:27 PDT"]
[Termination "NikolaGry won by checkmate"]

1. d4 {[%clk 0:02:42.5]} 1... d5 {[%clk 0:02:59.3]} 2. Nf3 {[%clk 0:02:37.9]}
2... Nc6 {[%clk 0:02:59.2]} 3. g3 {[%clk 0:02:35.9]} 3... Bg4 {[%clk 0:02:59]}
4. Bg2 {[%clk 0:02:35.8]} 4... Qd7 {[%clk 0:02:59.4]} 5. O-O {[%clk 0:02:35.5]}
5... Bh3 {[%clk 0:02:58.9]} 6. Nbd2 {[%clk 0:02:30.2]} 6... Bxg2 {[%clk
0:02:58.2]} 7. Kxg2 {[%clk 0:02:29.7]} 7... e6 {[%clk 0:02:56.3]} 8. c4 {[%clk
0:02:27.8]} 8... Be7 {[%clk 0:02:53.5]} 9. cxd5 {[%clk 0:02:16.6]} 9... exd5
{[%clk 0:02:53.1]} 10. Ne5 {[%clk 0:02:10.5]} 10... Nxe5 {[%clk 0:02:51.9]} 11.
dxe5 {[%clk 0:02:11.4]} 11... O-O-O {[%clk 0:02:46.4]} 12. Nf3 {[%clk
0:02:07.9]} 12... h5 {[%clk 0:02:34.3]} 13. Be3 {[%clk 0:02:07.3]} 13... Kb8
{[%clk 0:02:29.6]} 14. Rc1 {[%clk 0:02:04.7]} 14... h4 {[%clk 0:02:24.9]} 15.
Qd4 {[%clk 0:01:25.9]} 15... b6 {[%clk 0:02:08.4]} 16. a4 {[%clk 0:00:40.4]}
16... hxg3 {[%clk 0:01:59.9]} 17. fxg3 {[%clk 0:00:39.5]} 17... Nh6 {[%clk
0:01:48.4]} 18. a5 {[%clk 0:00:16.6]} 18... Nf5 {[%clk 0:01:43.6]} 19. Qd3
{[%clk 0:00:11.9]} 19... Nxe3+ {[%clk 0:01:21.8]} 20. Qxe3 {[%clk 0:00:12.8]}
20... g5 {[%clk 0:01:12.8]} 21. axb6 {[%clk 0:00:10.6]} 21... axb6 {[%clk
0:01:11.4]} 22. Ra1 {[%clk 0:00:09.5]} 22... Qh3+ {[%clk 0:01:04.6]} 23. Kf2
{[%clk 0:00:09.3]} 23... Bc5 {[%clk 0:01:01.6]} 24. Nd4 {[%clk 0:00:07.6]} 24...
Qg4 {[%clk 0:00:34]} 25. Rfd1 {[%clk 0:00:04.8]} 25... Rxh2+ {[%clk 0:00:30.6]}
26. Kg1 {[%clk 0:00:04.9]} 26... Bxd4 {[%clk 0:00:19.9]} 27. Rxd4 {[%clk
0:00:02.8]} 27... Qh3 {[%clk 0:00:20]} 28. Ra8+ {[%clk 0:00:01.4]} 28... Kxa8
{[%clk 0:00:19.4]} 29. Ra4+ {[%clk 0:00:02.1]} 29... Kb7 {[%clk 0:00:19]} 30.
Qd3 {[%clk 0:00:01.5]} 30... Qg2# {[%clk 0:00:18.1]} 0-1

[Event "Late-Titled-Tuesday-Blitz-March-19-2024"]
[Site "Chess.com"]
[Date "2024.03.19"]
[Round "4"]
[White "ventdelest"]
[Black "NowInChess"]
[Result "1/2-1/2"]
[WhiteElo "2031"]
[BlackElo "2269"]
[TimeControl "180+1"]
[EndTime "14:38:36 PDT"]
[Termination "Game drawn by repetition"]

1. e4 {[%clk 0:01:32.1]} 1... e6 {[%clk 0:02:57.7]} 2. d4 {[%clk 0:01:32.1]}
2... d5 {[%clk 0:02:58.3]} 3. Nc3 {[%clk 0:01:32.6]} 3... Nc6 {[%clk 0:02:57.9]}
4. Nf3 {[%clk 0:01:31.6]} 4... Nf6 {[%clk 0:02:57.8]} 5. e5 {[%clk 0:01:31.1]}
5... Ne4 {[%clk 0:02:57.8]} 6. Ne2 {[%clk 0:01:31.2]} 6... f6 {[%clk 0:02:55.1]}
7. c3 {[%clk 0:01:31.6]} 7... fxe5 {[%clk 0:02:40.6]} 8. Nxe5 {[%clk 0:01:32.5]}
8... Nxe5 {[%clk 0:02:33.6]} 9. dxe5 {[%clk 0:01:33.4]} 9... Bc5 {[%clk
0:02:31.5]} 10. Nd4 {[%clk 0:01:31.8]} 10... O-O {[%clk 0:02:24.2]} 11. Be3
{[%clk 0:01:32.1]} 11... Bb6 {[%clk 0:02:09.7]} 12. Bd3 {[%clk 0:01:31.5]} 12...
c5 {[%clk 0:02:08.9]} 13. Nf3 {[%clk 0:01:30.2]} 13... Bd7 {[%clk 0:02:02]} 14.
Bxe4 {[%clk 0:01:27.8]} 14... dxe4 {[%clk 0:02:02.9]} 15. Ng5 {[%clk 0:01:26.1]}
15... Bc6 {[%clk 0:01:46.1]} 16. Qxd8 {[%clk 0:01:22.2]} 16... Rfxd8 {[%clk
0:01:46.4]} 17. Nxe6 {[%clk 0:01:21.8]} 17... Re8 {[%clk 0:01:47]} 18. Nxc5
{[%clk 0:01:21]} 18... Rxe5 {[%clk 0:01:45.8]} 19. b4 {[%clk 0:01:19.2]} 19...
a5 {[%clk 0:01:39.6]} 20. O-O {[%clk 0:01:17.5]} 20... Bb5 {[%clk 0:01:31.8]}
21. Rfd1 {[%clk 0:01:12.5]} 21... Bxc5 {[%clk 0:01:25.2]} 22. Bxc5 {[%clk
0:01:11.1]} 22... Bd3 {[%clk 0:01:25.8]} 23. Bd4 {[%clk 0:01:08.7]} 23... Rd5
{[%clk 0:01:21.5]} 24. a3 {[%clk 0:01:07.4]} 24... Rf8 {[%clk 0:01:14.8]} 25. f3
{[%clk 0:01:06.6]} 25... Bc2 {[%clk 0:01:06.7]} 26. Rd2 {[%clk 0:01:03.4]} 26...
Bd3 {[%clk 0:01:04.7]} 27. fxe4 {[%clk 0:01:02.9]} 27... Bxe4 {[%clk 0:01:04.6]}
28. Re1 {[%clk 0:01:03]} 28... Bg6 {[%clk 0:01:00]} 29. Re7 {[%clk 0:01:01.4]}
29... Rf7 {[%clk 0:00:53]} 30. Rxf7 {[%clk 0:01:01.2]} 30... Kxf7 {[%clk
0:00:53.9]} 31. c4 {[%clk 0:01:00.3]} 31... Rd7 {[%clk 0:00:50.7]} 32. Rf2+
{[%clk 0:00:56.6]} 32... Ke6 {[%clk 0:00:48.9]} 33. Rd2 {[%clk 0:00:52.6]} 33...
axb4 {[%clk 0:00:45.3]} 34. axb4 {[%clk 0:00:52.4]} 34... Kf5 {[%clk 0:00:42.4]}
35. Kf2 {[%clk 0:00:48.2]} 35... Ke4 {[%clk 0:00:41.5]} 36. Bc3 {[%clk
0:00:47.8]} 36... Rxd2+ {[%clk 0:00:42.2]} 37. Bxd2 {[%clk 0:00:47.9]} 37... Kd4
{[%clk 0:00:38.4]} 38. c5 {[%clk 0:00:45.6]} 38... Kc4 {[%clk 0:00:37]} 39. Ke3
{[%clk 0:00:45]} 39... Bf5 {[%clk 0:00:34.6]} 40. g3 {[%clk 0:00:43.8]} 40... g6
{[%clk 0:00:34.7]} 41. Kf4 {[%clk 0:00:43.2]} 41... Bd3 {[%clk 0:00:32.2]} 42.
Ke5 {[%clk 0:00:42.1]} 42... Kb5 {[%clk 0:00:32.3]} 43. Kd6 {[%clk 0:00:41.3]}
43... Be4 {[%clk 0:00:31.5]} 44. h4 {[%clk 0:00:40.1]} 44... h5 {[%clk
0:00:31.1]} 45. Be1 {[%clk 0:00:38.7]} 45... Bf3 {[%clk 0:00:30.6]} 46. Bd2
{[%clk 0:00:38.4]} 46... Be4 {[%clk 0:00:30.8]} 47. Be1 {[%clk 0:00:38.4]} 47...
Bf5 {[%clk 0:00:31.3]} 48. Bd2 {[%clk 0:00:37.7]} 48... Bb1 {[%clk 0:00:31.6]}
49. Be1 {[%clk 0:00:37.6]} 49... Bf5 {[%clk 0:00:31.8]} 50. Bd2 {[%clk
0:00:37.8]} 50... Bb1 {[%clk 0:00:31.4]} 51. Be1 {[%clk 0:00:38.1]} 51... Bf5
{[%clk 0:00:31.6]} 1/2-1/2